[Event "Titled Tuesday Blitz July 4 Late 2023"]
[White "ElenGajger"]
[Black "Gasparyan, David"]
[BlackFideId "13311980"]
[WhiteElo "2374"]
[BlackElo "2539"]
[Result "1/2-1/2"]
[Round "6"]
[TimeControl "180+2"]
[Date "2023.07.04"]
[WhiteClock "0:00:13"]
[BlackClock "0:01:15"]
[Board "89"]

1. e4 {[%clk 0:03:00]}  c5 {[%clk 0:03:00]} 2. Nc3 {[%clk 0:02:58]}  e6 {[%clk 0:03:00]} 3. f4 {[%clk 0:02:58]}  d5 {[%clk 0:03:00]} 4. Bb5+ {[%clk 0:02:56]}  Nc6 {[%clk 0:02:58]} 5. exd5 {[%clk 0:02:56]}  exd5 {[%clk 0:02:58]} 6. Qe2+ {[%clk 0:02:56]}  Be7 {[%clk 0:02:57]} 7. Nf3 {[%clk 0:02:55]}  Nf6 {[%clk 0:02:56]} 8. Ne5 {[%clk 0:02:52]}  Qc7 {[%clk 0:02:54]} 9. Bxc6+ {[%clk 0:02:25]}  bxc6 {[%clk 0:02:53]} 10. d3 {[%clk 0:02:25]}  O-O {[%clk 0:02:52]} 11. O-O {[%clk 0:02:24]}  Rb8 {[%clk 0:02:51]} 12. b3 {[%clk 0:02:23]}  Re8 {[%clk 0:02:48]} 13. Re1 {[%clk 0:02:18]}  Bd6 {[%clk 0:02:47]} 14. Bb2 {[%clk 0:02:11]}  h6 {[%clk 0:02:36]} 15. Na4 {[%clk 0:01:57]}  Bg4 {[%clk 0:02:29]} 16. Qf2 {[%clk 0:01:56]}  c4 {[%clk 0:02:20]} 17. dxc4 {[%clk 0:01:44]}  dxc4 {[%clk 0:02:19]} 18. Nxc4 {[%clk 0:01:41]}  Ne4 {[%clk 0:02:13]} 19. Qd4 {[%clk 0:01:40]}  f5 {[%clk 0:01:59]} 20. Rxe4 {[%clk 0:01:14]}  Rxe4 {[%clk 0:01:59]} 21. Qxd6 {[%clk 0:01:13]}  Qxd6 {[%clk 0:01:59]} 22. Nxd6 {[%clk 0:01:13]}  Rxa4 {[%clk 0:02:00]} 23. bxa4 {[%clk 0:00:53]}  Rxb2 {[%clk 0:02:00]} 24. h3 {[%clk 0:00:53]}  Bh5 {[%clk 0:01:57]} 25. Nxf5 {[%clk 0:00:52]}  Rxc2 {[%clk 0:01:57]} 26. Rb1 {[%clk 0:00:45]}  Bf7 {[%clk 0:01:47]} 27. Rb7 {[%clk 0:00:32]}  Rxa2 {[%clk 0:01:42]} 28. Rxa7 {[%clk 0:00:31]}  Be6 {[%clk 0:01:35]} 29. Nxg7 {[%clk 0:00:24]}  Bd5 {[%clk 0:01:35]} 30. Nf5 {[%clk 0:00:23]}  Rxg2+ {[%clk 0:01:35]} 31. Kf1 {[%clk 0:00:24]}  Rb2 {[%clk 0:01:26]} 32. Ne7+ {[%clk 0:00:20]}  Kf8 {[%clk 0:01:26]} 33. Nxd5 {[%clk 0:00:19]}  cxd5 {[%clk 0:01:26]} 34. f5 {[%clk 0:00:16]}  Rb4 {[%clk 0:01:26]} 35. Ke2 {[%clk 0:00:15]}  Rf4 {[%clk 0:01:26]} 36. Ra6 {[%clk 0:00:12]}  h5 {[%clk 0:01:25]} 37. Rf6+ {[%clk 0:00:11]}  Ke7 {[%clk 0:01:25]} 38. Re6+ {[%clk 0:00:11]}  Kf7 {[%clk 0:01:24]} 39. Rd6 {[%clk 0:00:11]}  Rxf5 {[%clk 0:01:24]} 40. a5 {[%clk 0:00:11]}  Ke7 {[%clk 0:01:25]} 41. Rb6 {[%clk 0:00:10]}  d4 {[%clk 0:01:24]} 42. a6 {[%clk 0:00:10]}  Ra5 {[%clk 0:01:24]} 43. Kd3 {[%clk 0:00:11]}  Ra4 {[%clk 0:01:23]} 44. Rh6 {[%clk 0:00:10]}  Kf7 {[%clk 0:01:22]} 45. a7 {[%clk 0:00:08]}  Kg7 {[%clk 0:01:22]} 46. Rxh5 {[%clk 0:00:09]}  Rxa7 {[%clk 0:01:21]} 47. Kxd4 {[%clk 0:00:09]}  Re7 {[%clk 0:01:22]} 48. Re5 {[%clk 0:00:08]}  Ra7 {[%clk 0:01:20]} 49. Ke4 {[%clk 0:00:08]}  Kg6 {[%clk 0:01:21]} 50. Re6+ {[%clk 0:00:07]}  Kg5 {[%clk 0:01:20]} 51. Re5+ {[%clk 0:00:07]}  Kh4 {[%clk 0:01:20]} 52. Kd5 {[%clk 0:00:07]}  Rf7 {[%clk 0:01:19]} 53. Re6 {[%clk 0:00:07]}  Rf5+ {[%clk 0:01:20]} 54. Re5 {[%clk 0:00:08]}  Rf6 {[%clk 0:01:20]} 55. Re6 {[%clk 0:00:08]}  Rf1 {[%clk 0:01:20]} 56. Re5 {[%clk 0:00:09]}  Rd1+ {[%clk 0:01:21]} 57. Ke6 {[%clk 0:00:08]}  Rc1 {[%clk 0:01:21]} 58. Rd5 {[%clk 0:00:09]}  Rc8 {[%clk 0:01:20]} 59. Ke5 {[%clk 0:00:10]}  Ra8 {[%clk 0:01:19]} 60. Kd4 {[%clk 0:00:11]}  Re8 {[%clk 0:01:19]} 61. Re5 {[%clk 0:00:11]}  Rb8 {[%clk 0:01:19]} 62. Re4+ {[%clk 0:00:12]}  Kxh3 {[%clk 0:01:19]} 63. Re3+ {[%clk 0:00:12]}  Kg4 {[%clk 0:01:19]} 64. Re4+ {[%clk 0:00:13]}  Kf5 {[%clk 0:01:19]} 65. Re5+ {[%clk 0:00:13]}  Kf4 {[%clk 0:01:20]} 66. Re4+ {[%clk 0:00:13]}  Kf3 {[%clk 0:01:21]} 67. Re3+ {[%clk 0:00:13]}  Kf2 {[%clk 0:01:21]} 68. Re4 {[%clk 0:00:14]}  Rb5 {[%clk 0:01:21]} 69. Re5 {[%clk 0:00:13]}  Rb3 {[%clk 0:01:21]} 70. Rc5 {[%clk 0:00:14]}  Rg3 {[%clk 0:01:20]} 71. Rc3 {[%clk 0:00:14]}  Rg5 {[%clk 0:01:20]} 72. Kc4 {[%clk 0:00:14]}  Rg4+ {[%clk 0:01:19]} 73. Kb3 {[%clk 0:00:15]}  Rd4 {[%clk 0:01:19]} 74. Rc4 {[%clk 0:00:15]}  Rd5 {[%clk 0:01:19]} 75. Rc3 {[%clk 0:00:15]}  Ke2 {[%clk 0:01:20]} 76. Rc2+ {[%clk 0:00:15]}  Kd1 {[%clk 0:01:19]} 77. Rc3 {[%clk 0:00:15]}  Rb5+ {[%clk 0:01:17]} 78. Kc4 {[%clk 0:00:15]}  Rh5 {[%clk 0:01:17]} 79. Kd3 {[%clk 0:00:14]}  Rh3+ {[%clk 0:01:16]} 80. Kc4 {[%clk 0:00:14]}  Rh4+ {[%clk 0:01:16]} 81. Kb3 {[%clk 0:00:13]}  Rd4 {[%clk 0:01:16]} 82. Rc4 {[%clk 0:00:13]}  Rd2 {[%clk 0:01:15]} 83. Kc3 {[%clk 0:00:13]}  Rc2+ {[%clk 0:01:14]} 84. Kd3 {[%clk 0:00:13]}  Re2 {[%clk 0:01:14]} 85. Rd4 {[%clk 0:00:13]}  Rd2+ {[%clk 0:01:14]} 86. Kc3 {[%clk 0:00:13]}  Rxd4 {[%clk 0:01:15]} 87. Kxd4 {[%clk 0:00:13]} 1/2-1/2


[Site "https://www.chess.com"]

[Event "Titled Tuesday Blitz July 4 Late 2023"]
[White "rikchessmx"]
[Black "Rodriguez, Santiago"]
[BlackFideId "3000591"]
[WhiteElo "2245"]
[BlackElo "2532"]
[Result "0-1"]
[Round "6"]
[TimeControl "180+2"]
[Date "2023.07.04"]
[WhiteClock "0:00:41"]
[BlackClock "0:00:13"]
[Board "90"]

1. e4 {[%clk 0:02:45]}  c5 {[%clk 0:02:58]} 2. Nf3 {[%clk 0:02:42]}  Nc6 {[%clk 0:02:58]} 3. d4 {[%clk 0:02:42]}  cxd4 {[%clk 0:02:59]} 4. Nxd4 {[%clk 0:02:43]}  e5 {[%clk 0:03:00]} 5. Nxc6 {[%clk 0:02:43]}  bxc6 {[%clk 0:03:00]} 6. Bd3 {[%clk 0:02:43]}  Nf6 {[%clk 0:03:01]} 7. O-O {[%clk 0:02:43]}  Bc5 {[%clk 0:03:01]} 8. Qf3 {[%clk 0:02:42]}  d6 {[%clk 0:03:00]} 9. Bg5 {[%clk 0:02:41]}  Be6 {[%clk 0:02:59]} 10. c4 {[%clk 0:02:40]}  Rb8 {[%clk 0:02:58]} 11. Qe2 {[%clk 0:02:37]}  h6 {[%clk 0:02:57]} 12. Be3 {[%clk 0:02:35]}  Bxe3 {[%clk 0:02:35]} 13. fxe3 {[%clk 0:02:35]}  Qb6 {[%clk 0:02:32]} 14. b3 {[%clk 0:02:33]}  a5 {[%clk 0:02:29]} 15. Nc3 {[%clk 0:02:32]}  Qc5 {[%clk 0:02:15]} 16. h3 {[%clk 0:02:28]}  Qb4 {[%clk 0:02:09]} 17. Rac1 {[%clk 0:02:27]}  Qa3 {[%clk 0:01:58]} 18. Bb1 {[%clk 0:02:17]}  h5 {[%clk 0:01:57]} 19. Rcd1 {[%clk 0:02:11]}  Rh6 {[%clk 0:01:54]} 20. Qd2 {[%clk 0:02:11]}  Ke7 {[%clk 0:01:49]} 21. Na4 {[%clk 0:02:04]}  Qb4 {[%clk 0:01:43]} 22. Qd3 {[%clk 0:01:54]}  Rd8 {[%clk 0:01:43]} 23. Kh2 {[%clk 0:01:51]}  Rg6 {[%clk 0:01:34]} 24. Rf2 {[%clk 0:01:51]}  Qb8 {[%clk 0:01:13]} 25. Rfd2 {[%clk 0:01:49]}  Rd7 {[%clk 0:01:06]} 26. c5 {[%clk 0:01:45]}  d5 {[%clk 0:01:04]} 27. exd5 {[%clk 0:01:41]}  e4+ {[%clk 0:01:04]} 28. d6+ {[%clk 0:01:38]}  Kf8 {[%clk 0:00:52]} 29. Qc3 {[%clk 0:01:37]}  Nd5 {[%clk 0:00:49]} 30. Qe5 {[%clk 0:01:25]}  Nxe3 {[%clk 0:00:45]} 31. Re1 {[%clk 0:01:17]}  Qb4 {[%clk 0:00:21]} 32. Rde2 {[%clk 0:00:56]}  Nxg2 {[%clk 0:00:16]} 33. Bxe4 {[%clk 0:00:52]}  Nxe1 {[%clk 0:00:13]} 34. Bxg6 {[%clk 0:00:41]}  Nf3+ {[%clk 0:00:13]} 0-1


[Site "https://www.chess.com"]

[Event "Titled Tuesday Blitz July 4 Late 2023"]
[White "benny_aizenberg"]
[Black "Djabri, Massinas"]
[BlackFideId "7905726"]
[WhiteElo "2660"]
[BlackElo "2364"]
[Result "0-1"]
[Round "6"]
[TimeControl "180+2"]
[Date "2023.07.04"]
[WhiteClock "0:00:03"]
[BlackClock "0:00:18"]
[Board "91"]

1. Nf3 {[%clk 0:03:00]}  Nf6 {[%clk 0:02:59]} 2. g3 {[%clk 0:03:01]}  g6 {[%clk 0:02:56]} 3. Bg2 {[%clk 0:03:01]}  Bg7 {[%clk 0:02:57]} 4. O-O {[%clk 0:03:01]}  O-O {[%clk 0:02:57]} 5. d4 {[%clk 0:03:02]}  d5 {[%clk 0:02:52]} 6. c4 {[%clk 0:03:02]}  dxc4 {[%clk 0:02:50]} 7. Qc2 {[%clk 0:03:02]}  a6 {[%clk 0:02:49]} 8. a4 {[%clk 0:03:01]}  Nc6 {[%clk 0:02:40]} 9. Rd1 {[%clk 0:02:58]}  Na5 {[%clk 0:02:26]} 10. Ne5 {[%clk 0:02:56]}  Bf5 {[%clk 0:02:19]} 11. e4 {[%clk 0:02:49]}  Bg4 {[%clk 0:02:14]} 12. f3 {[%clk 0:02:31]}  Bd7 {[%clk 0:02:10]} 13. Nxc4 {[%clk 0:02:31]}  Nxc4 {[%clk 0:02:03]} 14. Qxc4 {[%clk 0:02:31]}  b5 {[%clk 0:01:59]} 15. axb5 {[%clk 0:02:17]}  axb5 {[%clk 0:01:46]} 16. Rxa8 {[%clk 0:02:16]}  Qxa8 {[%clk 0:01:47]} 17. Qxc7 {[%clk 0:02:10]}  Rc8 {[%clk 0:01:47]} 18. Qf4 {[%clk 0:02:08]}  b4 {[%clk 0:01:32]} 19. Nd2 {[%clk 0:01:54]}  Rc2 {[%clk 0:01:05]} 20. Qe3 {[%clk 0:01:46]}  Ne8 {[%clk 0:00:46]} 21. Qd3 {[%clk 0:01:26]}  Ba4 {[%clk 0:00:46]} 22. Re1 {[%clk 0:01:08]}  Qc6 {[%clk 0:00:40]} 23. d5 {[%clk 0:00:58]}  Qc5+ {[%clk 0:00:40]} 24. Kh1 {[%clk 0:00:46]}  Rxc1 {[%clk 0:00:39]} 25. Qf1 {[%clk 0:00:38]}  Rxe1 {[%clk 0:00:29]} 26. Qxe1 {[%clk 0:00:39]}  Bxb2 {[%clk 0:00:28]} 27. f4 {[%clk 0:00:36]}  Qc1 {[%clk 0:00:26]} 28. Qxc1 {[%clk 0:00:35]}  Bxc1 {[%clk 0:00:27]} 29. Nc4 {[%clk 0:00:31]}  b3 {[%clk 0:00:27]} 30. e5 {[%clk 0:00:32]}  b2 {[%clk 0:00:23]} 31. Be4 {[%clk 0:00:32]}  Bb3 {[%clk 0:00:20]} 32. Na3 {[%clk 0:00:30]}  Be3 {[%clk 0:00:16]} 33. Kg2 {[%clk 0:00:30]}  Bc5 {[%clk 0:00:16]} 34. Nb1 {[%clk 0:00:29]}  Nc7 {[%clk 0:00:16]} 35. d6 {[%clk 0:00:23]}  exd6 {[%clk 0:00:16]} 36. exd6 {[%clk 0:00:24]}  Bxd6 {[%clk 0:00:17]} 37. Kf2 {[%clk 0:00:24]}  Nb5 {[%clk 0:00:17]} 38. Ke3 {[%clk 0:00:22]}  Na3 {[%clk 0:00:17]} 39. Nd2 {[%clk 0:00:22]}  Ba2 {[%clk 0:00:16]} 40. Kd4 {[%clk 0:00:21]}  b1=Q {[%clk 0:00:16]} 41. Nxb1 {[%clk 0:00:21]}  Nxb1 {[%clk 0:00:17]} 42. f5 {[%clk 0:00:18]}  Bf8 {[%clk 0:00:17]} 43. fxg6 {[%clk 0:00:18]}  hxg6 {[%clk 0:00:18]} 44. h4 {[%clk 0:00:17]}  Nd2 {[%clk 0:00:17]} 45. Bc2 {[%clk 0:00:16]}  Be6 {[%clk 0:00:18]} 46. Ke3 {[%clk 0:00:15]}  Nc4+ {[%clk 0:00:18]} 47. Kf4 {[%clk 0:00:15]}  Bd6+ {[%clk 0:00:18]} 48. Kf3 {[%clk 0:00:13]}  Kg7 {[%clk 0:00:18]} 49. Bd1 {[%clk 0:00:11]}  Ne5+ {[%clk 0:00:19]} 50. Kg2 {[%clk 0:00:11]}  Bd5+ {[%clk 0:00:19]} 51. Kh3 {[%clk 0:00:11]}  Bf3 {[%clk 0:00:20]} 52. Bc2 {[%clk 0:00:10]}  Bg4+ {[%clk 0:00:20]} 53. Kg2 {[%clk 0:00:09]}  Nc6 {[%clk 0:00:21]} 54. Be4 {[%clk 0:00:08]}  Nd4 {[%clk 0:00:21]} 55. Kf2 {[%clk 0:00:09]}  Nf5 {[%clk 0:00:20]} 56. Kg2 {[%clk 0:00:07]}  Bxg3 {[%clk 0:00:20]} 57. h5 {[%clk 0:00:06]}  Bxh5 {[%clk 0:00:19]} 58. Kh3 {[%clk 0:00:05]}  Bc7 {[%clk 0:00:19]} 59. Bc2 {[%clk 0:00:05]}  Nd6 {[%clk 0:00:19]} 60. Bd3 {[%clk 0:00:05]}  f5 {[%clk 0:00:19]} 61. Bf1 {[%clk 0:00:04]}  Bg4+ {[%clk 0:00:18]} 62. Kh4 {[%clk 0:00:04]}  Ne4 {[%clk 0:00:17]} 63. Bh3 {[%clk 0:00:03]}  Bd8# {[%clk 0:00:18]} 0-1


[Site "https://www.chess.com"]

[Event "Titled Tuesday Blitz July 4 Late 2023"]
[White "Prydun, Andriy"]
[Black "Janaszak, Dawid"]
[WhiteFideId "14145898"]
[BlackFideId "1119206"]
[WhiteElo "2398"]
[BlackElo "2583"]
[Result "0-1"]
[Round "6"]
[TimeControl "180+2"]
[Date "2023.07.04"]
[WhiteClock "0:00:00"]
[BlackClock "0:00:53"]
[Board "92"]

1. e4 {[%clk 0:03:00]}  c5 {[%clk 0:02:59]} 2. Nf3 {[%clk 0:03:00]}  Nc6 {[%clk 0:03:00]} 3. Bb5 {[%clk 0:02:59]}  e5 {[%clk 0:02:59]} 4. c3 {[%clk 0:02:51]}  Nge7 {[%clk 0:02:59]} 5. d4 {[%clk 0:02:44]}  cxd4 {[%clk 0:03:00]} 6. O-O {[%clk 0:02:42]}  g6 {[%clk 0:02:59]} 7. cxd4 {[%clk 0:02:42]}  exd4 {[%clk 0:03:00]} 8. Nxd4 {[%clk 0:02:42]}  Bg7 {[%clk 0:03:00]} 9. Nb3 {[%clk 0:02:37]}  d5 {[%clk 0:02:53]} 10. exd5 {[%clk 0:02:26]}  Qxd5 {[%clk 0:02:54]} 11. Qxd5 {[%clk 0:02:19]}  Nxd5 {[%clk 0:02:55]} 12. Re1+ {[%clk 0:02:20]}  Kf8 {[%clk 0:02:45]} 13. Nc5 {[%clk 0:01:23]}  Bf5 {[%clk 0:02:16]} 14. Nxb7 {[%clk 0:01:09]}  Nd4 {[%clk 0:02:16]} 15. Na3 {[%clk 0:01:07]}  Nb4 {[%clk 0:01:51]} 16. Bf4 {[%clk 0:01:02]}  Nbc2 {[%clk 0:01:41]} 17. Bd6+ {[%clk 0:00:55]}  Kg8 {[%clk 0:01:40]} 18. Nxc2 {[%clk 0:00:31]}  Nxc2 {[%clk 0:01:41]} 19. Rac1 {[%clk 0:00:13]}  Nxe1 {[%clk 0:01:40]} 20. Rxe1 {[%clk 0:00:14]}  Bxb2 {[%clk 0:01:36]} 21. h3 {[%clk 0:00:12]}  Kg7 {[%clk 0:01:33]} 22. g4 {[%clk 0:00:12]}  Be6 {[%clk 0:01:28]} 23. a4 {[%clk 0:00:12]}  a6 {[%clk 0:01:21]} 24. Bf1 {[%clk 0:00:10]}  h5 {[%clk 0:01:10]} 25. Nc5 {[%clk 0:00:09]}  hxg4 {[%clk 0:01:02]} 26. Nxe6+ {[%clk 0:00:09]}  fxe6 {[%clk 0:01:03]} 27. Rxe6 {[%clk 0:00:09]}  gxh3 {[%clk 0:00:56]} 28. Bd3 {[%clk 0:00:08]}  Bf6 {[%clk 0:00:56]} 29. Kh2 {[%clk 0:00:04]}  Rad8 {[%clk 0:00:54]} 30. Bxa6 {[%clk 0:00:00]}  Rxd6 {[%clk 0:00:53]} 0-1


[Site "https://www.chess.com"]

[Event "Titled Tuesday Blitz July 4 Late 2023"]
[White "Prieto Aranguren, Alain"]
[Black "Estrada Nieto, Julian"]
[WhiteFideId "2268906"]
[BlackFideId "5101018"]
[WhiteElo "2383"]
[BlackElo "2542"]
[Result "0-1"]
[Round "6"]
[TimeControl "180+2"]
[Date "2023.07.04"]
[WhiteClock "0:00:42"]
[BlackClock "0:00:25"]
[Board "95"]

1. d4 {[%clk 0:03:00]}  d5 {[%clk 0:02:59]} 2. c4 {[%clk 0:03:01]}  dxc4 {[%clk 0:02:59]} 3. e3 {[%clk 0:03:00]}  Nf6 {[%clk 0:02:59]} 4. Bxc4 {[%clk 0:03:01]}  e6 {[%clk 0:03:00]} 5. Nf3 {[%clk 0:03:00]}  c5 {[%clk 0:03:01]} 6. O-O {[%clk 0:02:59]}  a6 {[%clk 0:03:02]} 7. dxc5 {[%clk 0:02:59]}  Bxc5 {[%clk 0:03:01]} 8. Qxd8+ {[%clk 0:02:57]}  Kxd8 {[%clk 0:03:02]} 9. Be2 {[%clk 0:02:57]}  Nc6 {[%clk 0:03:00]} 10. Nbd2 {[%clk 0:02:57]}  Ke7 {[%clk 0:02:58]} 11. b3 {[%clk 0:02:57]}  Bd7 {[%clk 0:02:57]} 12. Bb2 {[%clk 0:02:56]}  Rhc8 {[%clk 0:02:45]} 13. Nc4 {[%clk 0:02:56]}  Be8 {[%clk 0:02:33]} 14. Rac1 {[%clk 0:02:53]}  b5 {[%clk 0:02:29]} 15. Nce5 {[%clk 0:02:53]}  Nxe5 {[%clk 0:02:29]} 16. Nxe5 {[%clk 0:02:52]}  Bd6 {[%clk 0:02:19]} 17. Bf3 {[%clk 0:02:50]}  Rab8 {[%clk 0:02:16]} 18. Nc6+ {[%clk 0:02:45]}  Bxc6 {[%clk 0:02:16]} 19. Bxc6 {[%clk 0:02:45]}  Rc7 {[%clk 0:02:10]} 20. Bf3 {[%clk 0:02:45]}  Rbc8 {[%clk 0:02:10]} 21. Rxc7+ {[%clk 0:02:44]}  Rxc7 {[%clk 0:02:10]} 22. Rc1 {[%clk 0:02:43]}  Rxc1+ {[%clk 0:01:59]} 23. Bxc1 {[%clk 0:02:43]}  Kd7 {[%clk 0:01:51]} 24. Kf1 {[%clk 0:02:43]}  Kc7 {[%clk 0:01:50]} 25. Ke2 {[%clk 0:02:42]}  Be5 {[%clk 0:01:48]} 26. Kd3 {[%clk 0:02:40]}  Nd7 {[%clk 0:01:48]} 27. Ba3 {[%clk 0:02:36]}  h5 {[%clk 0:01:34]} 28. Bb4 {[%clk 0:02:32]}  g6 {[%clk 0:01:31]} 29. Ba5+ {[%clk 0:02:31]}  Kd6 {[%clk 0:01:29]} 30. Bb4+ {[%clk 0:02:24]}  Kc7 {[%clk 0:01:24]} 31. h3 {[%clk 0:02:23]}  Bd6 {[%clk 0:01:22]} 32. Bxd6+ {[%clk 0:02:22]}  Kxd6 {[%clk 0:01:22]} 33. b4 {[%clk 0:02:20]}  Ne5+ {[%clk 0:01:19]} 34. Kd4 {[%clk 0:02:11]}  Nxf3+ {[%clk 0:01:16]} 35. gxf3 {[%clk 0:02:11]}  e5+ {[%clk 0:01:15]} 36. Kd3 {[%clk 0:02:11]}  f5 {[%clk 0:01:06]} 37. e4 {[%clk 0:02:07]}  f4 {[%clk 0:00:55]} 38. Ke2 {[%clk 0:02:03]}  Ke6 {[%clk 0:00:55]} 39. Kf1 {[%clk 0:02:02]}  Kf6 {[%clk 0:00:54]} 40. Kg2 {[%clk 0:02:00]}  Kg5 {[%clk 0:00:54]} 41. Kh2 {[%clk 0:01:59]}  Kh4 {[%clk 0:00:54]} 42. Kg2 {[%clk 0:01:59]}  g5 {[%clk 0:00:53]} 43. Kh2 {[%clk 0:01:58]}  g4 {[%clk 0:00:52]} 44. hxg4 {[%clk 0:01:49]}  hxg4 {[%clk 0:00:52]} 45. Kg2 {[%clk 0:01:37]}  gxf3+ {[%clk 0:00:44]} 46. Kxf3 {[%clk 0:01:37]}  Kh3 {[%clk 0:00:45]} 47. a3 {[%clk 0:01:35]}  Kh2 {[%clk 0:00:35]} 48. Kg4 {[%clk 0:00:58]}  Kg2 {[%clk 0:00:35]} 49. Kf5 {[%clk 0:00:58]}  Kxf2 {[%clk 0:00:32]} 50. Kxe5 {[%clk 0:00:59]}  f3 {[%clk 0:00:32]} 51. Kd4 {[%clk 0:00:51]}  Kg2 {[%clk 0:00:31]} 52. e5 {[%clk 0:00:45]}  f2 {[%clk 0:00:31]} 53. Kc5 {[%clk 0:00:45]}  f1=Q {[%clk 0:00:31]} 54. Kb6 {[%clk 0:00:46]}  Qf5 {[%clk 0:00:25]} 55. Kxa6 {[%clk 0:00:45]}  Qxe5 {[%clk 0:00:25]} 56. Ka5 {[%clk 0:00:45]}  Qd5 {[%clk 0:00:25]} 57. a4 {[%clk 0:00:45]}  bxa4+ {[%clk 0:00:25]} 58. Kxa4 {[%clk 0:00:42]}  Qb7 {[%clk 0:00:25]} 0-1


[Site "https://www.chess.com"]

[Event "Titled Tuesday Blitz July 4 Late 2023"]
[White "Moral Garcia, Serafin"]
[Black "Seletsky, Grigory"]
[WhiteFideId "2201925"]
[BlackFideId "14112191"]
[WhiteElo "2519"]
[BlackElo "2357"]
[Result "1-0"]
[Round "6"]
[TimeControl "180+2"]
[Date "2023.07.04"]
[WhiteClock "0:00:49"]
[BlackClock "0:00:00"]
[Board "99"]

1. c4 {[%clk 0:03:00]}  c6 {[%clk 0:02:59]} 2. e4 {[%clk 0:03:00]}  d5 {[%clk 0:02:57]} 3. exd5 {[%clk 0:03:01]}  cxd5 {[%clk 0:02:57]} 4. d4 {[%clk 0:03:01]}  Nf6 {[%clk 0:02:57]} 5. Nc3 {[%clk 0:03:02]}  Nc6 {[%clk 0:02:57]} 6. Bg5 {[%clk 0:03:01]}  Be6 {[%clk 0:02:49]} 7. Be2 {[%clk 0:02:54]}  h6 {[%clk 0:02:34]} 8. Bxf6 {[%clk 0:02:52]}  exf6 {[%clk 0:02:34]} 9. Bf3 {[%clk 0:02:52]}  Bb4 {[%clk 0:02:30]} 10. Ne2 {[%clk 0:02:50]}  O-O {[%clk 0:02:27]} 11. O-O {[%clk 0:02:45]}  Ne7 {[%clk 0:02:16]} 12. Qb3 {[%clk 0:02:39]}  Bxc3 {[%clk 0:02:12]} 13. bxc3 {[%clk 0:02:36]}  dxc4 {[%clk 0:02:10]} 14. Qxb7 {[%clk 0:02:35]}  Bd5 {[%clk 0:02:10]} 15. Bxd5 {[%clk 0:02:30]}  Nxd5 {[%clk 0:02:10]} 16. Qb5 {[%clk 0:02:20]}  Re8 {[%clk 0:02:04]} 17. Qxc4 {[%clk 0:02:19]}  Rc8 {[%clk 0:02:00]} 18. Qd3 {[%clk 0:02:19]}  Qe7 {[%clk 0:01:56]} 19. Ng3 {[%clk 0:01:51]}  Rxc3 {[%clk 0:01:45]} 20. Qd2 {[%clk 0:01:51]}  Qd7 {[%clk 0:01:40]} 21. Rfe1 {[%clk 0:01:48]}  Rxe1+ {[%clk 0:01:28]} 22. Rxe1 {[%clk 0:01:47]}  Rc6 {[%clk 0:01:17]} 23. h3 {[%clk 0:01:43]}  Re6 {[%clk 0:01:11]} 24. Rc1 {[%clk 0:01:39]}  Rc6 {[%clk 0:01:10]} 25. Rc5 {[%clk 0:01:33]}  Nb6 {[%clk 0:00:45]} 26. Qc2 {[%clk 0:01:19]}  Rxc5 {[%clk 0:00:27]} 27. dxc5 {[%clk 0:01:18]}  Qc7 {[%clk 0:00:19]} 28. Nf5 {[%clk 0:01:12]}  Nd7 {[%clk 0:00:15]} 29. c6 {[%clk 0:01:05]}  Nb8 {[%clk 0:00:15]} 30. Qc5 {[%clk 0:00:57]}  g6 {[%clk 0:00:11]} 31. Nd4 {[%clk 0:00:52]}  Kg7 {[%clk 0:00:07]} 32. g3 {[%clk 0:00:50]}  h5 {[%clk 0:00:06]} 33. h4 {[%clk 0:00:50]}  a6 {[%clk 0:00:00]} 34. a4 {[%clk 0:00:49]} 1-0


[Site "https://www.chess.com"]